Cogmind - Beta 11 @@@ ROGUE MODE // 2022.03.19 @ 20:40:02 Player: KIWA Result: Self-destructed Performance ------------- Evolutions (1) 500 Regions Visited (2) 400 Robots Destroyed (14) 70 Value Destroyed (463) 463 Prototype IDs (0) 0 Alien Tech Used (0) 0 Bonus (0) 0 TOTAL SCORE: 1433 Bonus ------- None Cogmind --------- Core Integrity 199/400 Matter 300/300 Energy 250/250 System Corruption 0% Temperature Cool (0) Movement Rolling (90) Location -9/Materials Parts ------- > --- POWER (1) -------- Ion Engine > --- PROPULSION (2) --- Wheel Compact Wheel > --- UTILITY (4) ------ Heat Sink Small Storage Unit Structural Scanner Visual Processing Unit > --- WEAPON (2) ------- (None) > --- INVENTORY (8) ---- Ion Engine Aluminum Leg Signal Interpreter Peak State ------------ > --- POWER ------------ Ion Engine > --- PROPULSION ------- Aluminum Leg Aluminum Leg > --- UTILITY ---------- Small Storage Unit Structural Scanner Visual Processing Unit > --- WEAPON ----------- Beam Rifle Beam Rifle > --- INVENTORY -------- Ion Engine Aluminum Leg Wheel Compact Wheel Signal Interpreter EM Pulse Gun [Rating: 11] Favorites ----------- Power Ion Engine Engine Ion Engine Propulsion Aluminum Leg Leg Aluminum Leg Wheel Wheel Utility Small Storage Unit Device Structural Scanner Storage Small Storage Unit Processor Visual Processing Unit Weapon Beam Rifle Energy Gun Beam Rifle Ballistic Gun Assault Rifle Build | -11 -10 -9 ------- Run | Scr Mat Mat Slots Evolved 2 | . . 2 Power . | . . . Propulsion . | . . . Utility 2 | . . 2 Weapon . | . . . Parts Attached 15 | . 9 6 Power 1 | . . 1 Engine 1 | . . 1 Core . | . . . Reactor . | . . . Propulsion 8 | . 6 2 Treads . | . . . Leg 5 | . 5 . Wheel 3 | . 1 2 Hover . | . . . Flight . | . . . Utility 3 | . 1 2 Device 2 | . 1 1 Storage . | . . . Processor 1 | . . 1 Hackware . | . . . Protection . | . . . Artifact . | . . . Weapon 3 | . 2 1 Energy Gun 3 | . 2 1 Energy Cannon . | . . . Ballistic Gun . | . . . Ballistic Cannon . | . . . Launcher . | . . . Special Weapon . | . . . Impact Weapon . | . . . Slashing Weapon . | . . . Piercing Weapon . | . . . Special Melee Weapon . | . . . Unidentified Prototypes . | . . . Parts Lost 7 | . 1 6 Power 1 | . . 1 Propulsion 3 | . 1 2 Utility . | . . . Weapon 3 | . . 3 Highest Loss Streak 4 | . 1 4 To Critical Strikes . | . . . Average Slot Usage (%) 86 | . 94 73 Engine 10 | . 14 5 Leg 19 | . 27 8 Wheel 3 | . . 8 Device 11 | . 9 14 Storage 12 | . 14 11 Processor 4 | . . 11 Energy Gun 18 | . 20 15 Ballistic Gun 4 | . 7 . Naked Turns . | . . . Heaviest Build 17 | 14 17 17 Greatest Support 26 | 20 20 26 Greatest Overweight (x) 3 | . 1 3 Average Overweight (x) . | . . . Largest Inventory Capacity 8 | . 8 8 Average Capacity 8 | . 8 8 Most Carried 8 | . 8 6 Average Carried 5 | . 6 4 Final Capacity 8 | 8 8 8 Final Carried 7 | 6 7 3 Class Distribution -------------------- 100% | Mutant Dominant Class ---------------- Mutant | -10/Materials Mutant | -9/Materials Resources | -11 -10 -9 ----------- Run | Scr Mat Mat Matter Collected 377 | 200 127 50 Remotely . | . . . Salvage Created 553 | . 361 192 Parts 28 | . 17 11 Haulers Intercepted . | . . . Recyclers Shooed . | . . . Parts Field Recycled . | . . . Retrieved Matter . | . . . Parts Self-Destructed . | . . . Prevented . | . . . Kills | -11 -10 -9 ------- Run | Scr Mat Mat Combat Hostiles Destroyed 12 | . 7 5 Guns 12 | . 7 5 Classes Destroyed 2 | . 2 . Watcher 2 | . 2 . Grunt 12 | . 7 5 Best Kill Streak 3 | . 3 2 Combat Bots Only 3 | . 3 2 Max Kills in Single Turn 1 | . 1 1 Gunslinging . | . . . Exploded . | . . . Melee . | . . . Uniques/NPCs Destroyed . | . . . Combat | -11 -10 -9 -------- Run | Scr Mat Mat Damage Taken 961 | . 365 596 Core 215 | . 14 201 Absorbed by Shields . | . . . Core Remaining (%) 97 | 100 94 . Volleys Fired 52 | . 29 23 Largest 2 | . 2 2 Hottest 112 | . 112 112 Shots Fired 94 | . 58 36 Gun 94 | . 58 36 Cannon . | . . . Launcher . | . . . Special . | . . . Kinetic 14 | . 14 . Thermal 71 | . 44 27 Explosive . | . . . Electromagnetic 9 | . . 9 Robot Hit Streak 11 | . 6 11 Robot Miss Streak 3 | . 3 2 Penetration Max . | . . . Secondary Targets 2 | . 1 1 Max Gunslinging Chain 1 | . 1 1 Shots Hit Robots 67 | . 39 28 Core Hits 26 | . 16 10 Critical Kills . | . . . Critical Parts Destroyed . | . . . Critical Strikes 5 | . 3 2 Burn 5 | . 3 2 Melee Attacks . | . . . Impact . | . . . Slashing . | . . . Piercing . | . . . Sneak Attacks . | . . . Combat Hostiles . | . . . Follow-up Attacks . | . . . Damage Inflicted 935 | . 537 398 Guns 935 | . 537 398 Cannons . | . . . Explosions . | . . . Melee . | . . . Ramming . | . . . Kinetic 133 | . 133 . Thermal 722 | . 404 318 Explosive . | . . . Electromagnetic 80 | . . 80 Impact . | . . . Slashing . | . . . Piercing . | . . . Highest Corruption 2 | . 2 . Average Corruption 2 | . 2 . Corruption Purged . | . . . Corruption Blocked . | . . . Overload Shots . | . . . Overflow Damage . | . . . Projectiles . | . . . Explosions . | . . . Melee . | . . . Knockbacks . | . . . Impact . | . . . Kinetic . | . . . Secondary . | . . . Self-Inflicted Damage . | . . . Shots . | . . . Rammed . | . . . Targets Rammed . | . . . Kicked . | . . . Crushed . | . . . Highest Temperature 315 | . 315 152 Average Temperature 111 | . 132 65 Received Heat Transfer 465 | . 201 264 Siege Activations . | . . . Robots Corrupted . | . . . Combat Hostiles . | . . . Parts Fried . | . . . Impact Corruptions . | . . . Robots Melted . | . . . Combat Hostiles . | . . . Parts Melted 5 | . 3 2 Heat Transferred 2257 | . 1295 962 Parts Sabotaged . | . . . Parts Stolen . | . . . Parts Stripped . | . . . Power Chain Reactions . | . . . Missiles Intercepted . | . . . Alert | -11 -10 -9 ------- Run | Scr Mat Mat Peak Influence 214 | . 214 185 Initial 90 | . . 90 Average 112 | . 94 140 Maximum Alert Level 1 | . 1 . Low Security (%) 91 | . 86 100 Level 1 8 | . 13 . Level 2 . | . . . Level 3 . | . . . Level 4 . | . . . Level 5 . | . . . High Security . | . . . Max Security . | . . . Squads Dispatched 4 | . 3 1 Investigation . | . . . Extermination . | . . . Reinforcement 4 | . 3 1 Assault . | . . . Garrison . | . . . Intercept . | . . . Searches Triggered . | . . . Construction Impeded . | . . . Haulers Reinforced . | . . . Active Scanning Responses . | . . . Cargo Convoy Interrupts . | . . . Stealth | -11 -10 -9 --------- Run | Scr Mat Mat Distress Signals 1 | . 1 . Communications Jammed . | . . . Distress Signals . | . . . Times Spotted 22 | . 12 10 Peak Tracking Total 5 | . 4 5 Tactical Retreats . | . . . Traps | -11 -10 -9 ------- Run | Scr Mat Mat Traps Triggered 1 | . 1 . Indirectly . | . . . Trap Hack Attempts . | . . . Triggered . | . . . Disarmed . | . . . Reprogrammed . | . . . Reused . | . . . Traps Extracted . | . . . Installed . | . . . Triggered . | . . . Machines | -11 -10 -9 ---------- Run | Scr Mat Mat Machines Disabled 1 | . . 1 Max in Single Turn 1 | . . 1 Machines Sabotaged . | . . . Garrisons Compromised . | . . . Overloaded Fab Kills . | . . . Hacking | -11 -10 -9 --------- Run | Scr Mat Mat Machines Accessed . | . . . Terminals . | . . . Fabricators . | . . . Repair Stations . | . . . Recycling Units . | . . . Scanalyzers . | . . . Garrison Access . | . . . Total Hacks . | . . . Successful . | . . . Failed . | . . . Catastrophic . | . . . Database Lockouts . | . . . Manual . | . . . Terminals . | . . . Fabricators . | . . . Repair Stations . | . . . Recycling Units . | . . . Scanalyzers . | . . . Garrison Access . | . . . Terminal Hacks . | . . . Fabricator Hacks . | . . . Repair Station Hacks . | . . . Recycling Unit Hacks . | . . . Scanalyzer . | . . . Garrison Access Hacks . | . . . Unauthorized Hacks . | . . . Terminals . | . . . Fabricators . | . . . Repair Stations . | . . . Recycling Units . | . . . Scanalyzers . | . . . Garrison Access . | . . . Data Cores Recovered . | . . . Used . | . . . Hacking Detections . | . . . Full Trace Events . | . . . Feedback Events . | . . . Feedback Blocked . | . . . Robot Schematics Acquired . | . . . Robots Built . | . . . Authchips . | . . . Time . | . . . Total Robot Build Rating . | . . . Part Schematics Acquired . | . . . Parts Built . | . . . Authchips . | . . . Time . | . . . Total Part Build Rating . | . . . Parts Repaired . | . . . Time . | . . . Parts Recycled . | . . . Recycled Matter . | . . . Retrieved Matter . | . . . Retrieved Components . | . . . Parts Scanalyzed . | . . . Part Schematics Acquired . | . . . Parts Damaged . | . . . Bothacking | -11 -10 -9 ------------ Run | Scr Mat Mat Used RIF Installer . | . . . Robots Hacked . | . . . Non-combat . | . . . Combat . | . . . Robot Hacks Applied . | . . . Relay Couplers Released . | . . . Fabnet Peak Effective % . | . . . Robots Rewired . | . . . Allies Hacked . | . . . Hacks Repelled . | . . . Allies | -11 -10 -9 -------- Run | Scr Mat Mat Total Allies . | . . . Largest Group . | . . . Highest-Rated Group . | . . . Highest-Rated Ally . | . . . Total Orders . | . . . Ally Attacks . | . . . Total Damage . | . . . Kills . | . . . Allies Corrupted . | . . . Allies Melted . | . . . Intel | -11 -10 -9 ------- Run | Scr Mat Mat Robot Analysis Total . | . . . Derelict Logs Recovered . | . . . Drone Launches . | . . . Drone Recoveries . | . . . Exploration | -11 -10 -9 ------------- Run | Scr Mat Mat Turns Passed 513 | . 307 206 Spaces Moved 257 | 1 153 103 Core 12 | . . 12 Treads . | . . . Legs 186 | 1 153 32 Wheels 59 | . . 59 Hover . | . . . Flight . | . . . Fastest Speed 90 | 120 120 90 Average Speed 116 | 120 120 111 Slowest Speed 200 | 120 190 200 Overloaded Moves . | . . . Propulsion Burnouts . | . . . Robots Hopped . | . . . Cave-ins Triggered . | . . . Exploration Rate (%) 15 | 2 30 13 Regions Visited 2 Branch Regions . Pre-discovered Areas . | . . . Known Exits Taken . | . . . Unknown Exits Taken 2 | 1 1 . Scrap Searched . | . . . Spaces Dug . | . . . Terrain Destroyed . | . . . Melee . | . . . Projectile . | . . . AOE . | . . . Terrain Rammed . | . . . Walls Destroyed . | . . . Machines Disabled . | . . . Actions | -11 -10 -9 --------- Run | Scr Mat Mat Total 372 | . 215 157 Wait 40 | . 17 23 Move 255 | . 152 103 Hop . | . . . Pick Up 6 | . 4 2 Fast Attach 3 | . 3 . Attach 7 | . 1 6 Detach . | . . . Swap 5 | . 5 . Drop 4 | . 4 . Fire 52 | . 29 23 Melee . | . . . Ram . | . . . Kick . | . . . Crush . | . . . Escape Stasis . | . . . Rewire . | . . . Trap . | . . . Miscellaneous . | . . . Route ------- -11/Scrapyard -10/Materials -9/Materials History --------- Turn | Location | Event 1 | -11/Scrapyard | Discovered new exit (range 0) 1 | -11/Scrapyard | Entered Materials 297 | -10/Materials | Discovered new exit (range 10) 301 | -10/Materials | Build established: Mutant 308 | -10/Materials | Entered another Materials area 308 | -9/Materials | Evolved 2 slots: Utility x2 453 | -9/Materials | Lost 4 parts (2n2w) 514 | -9/Materials | Core integrity fell below 50% 514 | -9/Materials | Self-destructed Last Messages --------------- 00402_ G-34 Mercenary overheating. 00406_ G-34 Mercenary heat damages Sml. Laser. 00412_ G-34 Mercenary destroyed. 00420_ Acquired 10 matter. 00422_ Beam Rifle destroyed. 00436_ G-34 Mercenary destroyed. 00446_ Acquired 20 matter. 00448_ Acquired 10 matter. 00449_ Acquired Heat Sink. 00451_ Acquired 8 matter. 00452_ R-06 Scavenger collects Sml. Laser. 00455_ Acquired 2 matter. 00458_ R-06 Scavenger collects Corrupted Aluminum Leg. 00460_ Acquired Ion Engine. 00462_ R-06 Scavenger collects Ion Engine. 00470_ K-01 Serf collects debris. 00497_ EM Pulse Gun destroyed. 00501_ C-30 ARC bursts open, deploying its payload. 00501_ B-36 Bruiser unfolds itself. 00501_ G-34 Mercenary unfolds itself. Map ----- +----------------------------------------------------+ | ?????????????????????????????????????????????????? | | ?????????????????????????????????????????????????? | | ?????????????????????????????????????????????????? | | ?????????????????????????????????????????????????? | | ?????????????????????????????????????????????????? | | ?????????????????????????????????????????????????? | | ?????????????????????????????????????????????????? | | ?????????????????????????????????????????????????? | | ?????????????????????????????????????????????????? | | ?????????????????????????????????????????????????? | | ??????????????????????????????????????????????#### | | ??????????????????????????????????????????????#### | | ??????????????????????????????????????????????## | | ???????????????????????????????????????######### | | ???????????????????????????????????????######### | | ???????????????????????????????????????## # | | ???????????????????????????????????? #### # | | ????????????????????????????????????#####==! # ? | | ??????????????????????? #????????## +=!! # ? | | ???????????????????????/########????## ##=!! # ? | | ??????????????????????? # ######????## ## # | | ??????????????????????? # ##????## ######+#### | | ??????????????????????? # ""Y ##????## ### | | ?????????????????????## # "T ######## ### | | ?????????????????????## # "" ########/### | | ?????????????????????## g@ /g Y ## #### | | ?????????????????????## # # ## # | | ?????????????????????## ####### ## # % | | ??????????????????????? + # ## # | | ????????????????????????????? # " " """ ## # " | | ????????????????????????????? # "R" """ ## # " | | ????????????????????????????? # """ """ ## # %" | | ????????????????????????????? # " ## # | | ????????????????????????????? ####+####### # % | | ????????????????????????????? ### % #### | | ???????????????????????????????## ????? #### | | ??????????????????????????????? # ??? ???? | | ??????????????????????????????? # "????""" ???? | | ??????????????????????????????? # "????""" ???? | | ??????????????????????????????? # ???????" ???? | | ??????????????????????????????? # ???????? ???? | | ??????????????????????????????? # ???????? ???? | | ??????????????????????????????? # ???????????????? | | ?????????????????????????????????????????????????? | | ?????????????????????????????????????????????????? | | ?????????????????????????????????????????????????? | | ?????????????????????????????????????????????????? | | ?????????????????????????????????????????????????? | | ?????????????????????????????????????????????????? | | ?????????????????????????????????????????????????? | +----------------------------------------------------+ Best States ------------- Heat Dissipation 38 Energy Generation 10 Energy Capacity 250 Matter Stores 300 Matter Capacity 300 Sight Range 18 Terrain Scan Density 10 Evasion (%) 55 Item Schematics ----------------- None Robot Schematics ------------------ None Fabricated ------------ Nothing Alien Tech Used ----------------- None Achievements -------------- None Challenges ------------ None Game ------ Seed SmartbombReinforcedCoupler Manual? 0 Play Time 00:10:06 Cumulative 6.3 hours Start 2022.03.19 @ 20:32:46 End 2022.03.19 @ 20:40:02 Sessions 1 Manual Loads 0 Difficulty Rogue Special Mode None Game No. 14 Rogue 14 Adventurer 0 Explorer 0 Win Type - Total 0 Types 0/0/0/0/0/0/0/0/0 Lore% 12 Gallery% 15 Achievement% 10 Wizard Run 0 Options --------- ASCII 0 Keyboard 0 Movement Mouse Keybinds 0 Fullscreen 1 Font 24/Smallcaps Map View 76x50 Tactical HUD 1 Map Filters NONE Filters NONE Steam 1 RUN: 994b8204-d378-4546-a3b2-2cf77300ec76